[Event "German Bundesliga 2024-25"]
[Site "Germany"]
[Date "2025.01.11"]
[Round "5"]
[White "Deac, Bogdan-Daniel"]
[Black "Korobov, Anton"]
[Result "1/2-1/2"]
[Annotator "TA"]
[ECO "D35"]
[WhiteElo "2687"]
[BlackElo "2636"]
[PlyCount "197"]
[EventDate "2024.09.27"]
[EventType "team-tourn"]
[EventCountry "GER"]
[SourceTitle "playchess.com"]
[Source "ChessBase"]
[SourceQuality "1"]
[WhiteTeam "Baden-Baden"]
[BlackTeam "Viernheim"]
[TimeControl "40/5400+30:1800+30"]

{[%evp 16,196,26,24,43,34,56,33,60,39,42,20,33,29,35,30,28,39,40,29,50,58,64,45,56,47,68,39,61,23,40,47,54,54,43,48,79,69,63,61,56,56,70,51,50,39,44,32,45,47,41,29,47,29,43,29,46,43,53,34,46,19,85,79,85,75,91,89,91,80,98,100,116,95,114,108,93,104,166,164,208,88,225,164,224,215,223,197,197,197,197,197,193,193,198,0,281,289,287,280,389,384,348,275,435,268,438,433,463,438,438,424,458,458,581,458,458,458,1199,1149,816,358,2449,5819,1416,4728,5964,5819,6058,6058,6058,6058,6051,6051,6058,6058,5335,6060,6051,6051,6042,5995,5641,5122,1200,101,102,0,0,0,0,0,0,0,0,0,0,0,0,0,0,0,0,0,0,0,0,0,0,0,0,0,0,0,0,0,0,0,0,0,0,0,0]} 1. d4 {[%emt 0:01:00]} d5 {[%emt 0:01:00]} 2. c4 {[%emt 0:06:30]} e6 {[%emt 0:00:00]} 3. Nf3 {[%emt 0:00:30]} Nf6 {[%emt 0:00:00]} 4. Nc3 {[%emt 0:00:00]} Nbd7 {[%emt 0:00:30][%cal Bb8d7,Bd7f8,Bf8g6][%mdl 32]} 5. Qc2 {[%emt 0:04:00]} Be7 {[%emt 0:02:30]} 6. cxd5 {[%emt 0:05:30]} exd5 {[%emt 0:01:30]} 7. Bf4 {[%emt 0:01:30]} c6 {[%emt 0:06:30]} 8. h3 {[%emt 0:00:30]} Nf8 {[%emt 0:09:30]} 9. e3 {[%emt 0:02:30]} Ng6 {[%emt 0:01:30]} 10. Bh2 {[%emt 0:00:30]} Bd6 {[%emt 0:00:30]} 11. Bd3 {[%emt 0:37:30]} Bxh2 {[%emt 0:01:30]} 12. Nxh2 {[%emt 0:00:30]} O-O {[%emt 0:05:30]} 13. O-O {[%emt 0:09:30]} Re8 {[%emt 0:02:30]} 14. Rfe1 {[%emt 0:01:30]} Qd6 {[%emt 0:12:30]} 15. f3 {[%emt 0:05:30]} Bd7 {[%emt 0:02:30]} 16. Rad1 {[%emt 0:01:30]} Rac8 {[%emt 0:07:30]} 17. Qf2 {[%emt 0:00:30]} c5 {[%emt 0:03:30]} 18. dxc5 {[%emt 0:04:23]} Qxc5 {[%emt 0:01:30]} 19. Bxg6 {[%emt 0:07:48]} hxg6 {[%emt 0:00:30]} 20. Rd4 {[%emt 0:00:45]} g5 {[%emt 0:12:30]} 21. Red1 {[%emt 0:05:43][%cal Rc3d5]} Re5 {[%emt 0:02:30]} 22. Qd2 {[%emt 0:01:04][%cal Od1e1]} Rce8 {[%emt 0:01:30]} 23. Nf1 {[%emt 0:00:12][%cal Rc3d5]} (23. Nxd5 Rxd5 24. Rxd5 Nxd5 25. Qxd5 Qxe3+ 26. Kh1 Bc6 $17) 23... Bb5 {[%emt 0:01:30]} 24. Nxb5 {[%emt 0:01:12]} Qxb5 {[%emt 0:02:30]} 25. Rc1 {[%emt 0:00:03][%cal Bd1c1,Bc1c3,Bc3b3][%mdl 32]} a5 {[%emt 0:01:30]} 26. Rc3 {[%emt 0:00:47]} R5e6 {[%emt 0:01:25]} 27. Rb3 {[%emt 0:00:43]} Qa6 {[%emt 0:00:29]} 28. Ra3 {[%emt 0:01:25]} b6 {[%emt 0:00:31]} 29. Rc3 {[%emt 0:01:13]} Qb7 {[%emt 0:04:05]} 30. Qc2 {[%emt 0:00:31]} Qe7 {[%emt 0:00:31]} 31. Kf2 {[%emt 0:00:27]} g6 {[%emt 0:00:51]} 32. Qd2 {[%emt 0:00:34]} Qf8 {[%emt 0:04:03]} 33. Qc1 {[%emt 0:00:27]} Qd6 {[%emt 0:01:18]} 34. Kg1 {[%emt 0:00:20]} Qe7 {[%emt 0:01:43]} 35. Rc2 {[%emt 0:00:37]} Qf8 {[%emt 0:01:03]} 36. Rd3 {[%emt 0:00:17]} Qe7 {[%emt 0:01:21]} 37. Qd2 {[%emt 0:00:32]} Rd6 {[%emt 0:05:03]} 38. Qc3 {[%emt 0:00:51]} Nd7 {[%emt 0:02:25]} (38... Red8 $11) 39. Rcd2 $1 $16 {[%emt 0:00:32]} Qe6 {[#]} 40. e4 $1 {[%emt 0:00:22][%cal Rd3d5]} Nf6 {[%emt 0:01:27]} 41. Qb3 $1 {[%emt 0:01:12]} Red8 {[%emt 0:11:45]} 42. Ne3 {[%emt 0:00:30]} a4 {[%emt 0:04:47]} 43. Qd1 {[%emt 0:01:30][%cal Re4d5]} (43. Qxa4 $6 dxe4 44. Rxd6 Rxd6 45. Rxd6 Qxd6 $11) 43... b5 {[%emt 0:05:48]} 44. Nxd5 {[%emt 0:08:30]} Nxd5 {[%emt 0:00:33]} 45. Rxd5 {[%emt 0:05:27]} Rxd5 {[%emt 0:00:14]} 46. Rxd5 {[%emt 0:04:44][%mdl 4096] Endgame KQR-KQR. White is a pawn up.} Qb6+ {[%emt 0:00:16]} (46... Rxd5 $16 47. exd5 (47. Qxd5 Qxd5 48. exd5 Kg7 $15) 47... Qd6) 47. Kh1 $18 {[%emt 0:02:10]} Rc8 {[%emt 0:01:24]} 48. Qd4 {[%emt 0:04:46]} (48. Rxg5 Qe3 49. Qd5 (49. Rxb5 $2 Rc1 $19) 49... Rc1+ 50. Kh2 Kf8 $11) (48. Qd2 $1 $18 {has better winning chances.}) 48... Qc7 {[%emt 0:06:17]} (48... Qxd4 $16 49. Rxd4 Rc4 50. Rd8+ (50. Rxc4 bxc4 51. a3 Kf8 $18) 50... Kg7) 49. Qe5 {[%emt 0:00:58]} (49. Rxg5 $2 Qc1+ 50. Kh2 Qxg5 $19) (49. Rxb5 Qc1+ 50. Qg1 Qd2 $11) 49... Qc1+ {[%emt 0:00:32]} (49... Qxe5 {was called for.} 50. Rxe5 b4) 50. Kh2 {[%emt 0:00:08]} b4 {[%emt 0:00:05]} 51. Ra5 {[%emt 0:02:42]} (51. Qxg5 Qxb2 52. e5 Re8 $16 (52... Qxa2 $2 53. e6 $18)) 51... a3 {[%emt 0:01:18]} 52. bxa3 {[%emt 0:01:04]} (52. Qxg5 $2 axb2 (52... Qxb2 53. Ra6 $11) 53. Rd5 Qxg5 (53... b1=B $2 54. Rd8+ Rxd8 55. Qxc1 $18) (53... b1=R $2 54. Rd8+ Rxd8 55. Qxd8+ Kh7 56. Qf6 $19) 54. Rxg5 b1=Q $19 (54... b1=B 55. Rb5 $17)) 52... bxa3 {[%emt 0:00:02]} 53. Qd6 {[%emt 0:02:05]} (53. Qxg5 Qxg5 54. Rxg5 Rc2 $16) 53... g4 {[%emt 0:03:13]} 54. fxg4 {[%emt 0:00:38]} (54. Qxa3 $2 Qf4+ 55. Kg1 Rc1+ $19) (54. hxg4 Qe1 55. Rd5 Qh4+ 56. Kg1 Qe1+ 57. Kh2 Qh4+ 58. Kg1 Qe1+ 59. Kh2 $11) 54... Qb1 {[%emt 0:00:35]} 55. Qd7 $2 {[%emt 0:01:16]} ({White should try} 55. Rxa3 $18 Qxe4 56. Rf3) 55... Qb8+ $2 {[%emt 0:01:14][%mdl 8192]} (55... Qc1 $11 {and Black has nothing to worry.} 56. Qd6 Qe3) 56. e5 {[%emt 0:00:09]} Rd8 {[%emt 0:00:32]} 57. Qe7 {[%emt 0:00:32]} Re8 {[%emt 0:00:33]} 58. Qxa3 {[%emt 0:00:16]} Qc7 {[%emt 0:00:28]} 59. Qc5 {[%emt 0:00:11]} Qb7 {[%emt 0:00:12]} (59... Qxc5 $142 60. Rxc5 Ra8) 60. Qb5 {[%emt 0:01:15]} Qc8 $2 {[%emt 0:00:29]} (60... Qxb5 61. Rxb5 Ra8) 61. Ra7 {[%emt 0:00:29]} Qe6 {[%emt 0:00:12]} 62. Ra6 {[%emt 0:00:37]} Qxe5+ {[%emt 0:00:10]} 63. Qxe5 {[%emt 0:00:28]} Rxe5 {[%emt 0:00:34] KR-KR. White is two pawns up.} 64. a4 {[%emt 0:00:32]} g5 {[%emt 0:00:01]} 65. Rb6 {[%emt 0:00:31]} Re4 {[%emt 0:00:33]} 66. Rb5 {[%emt 0:00:11]} ({Less strong is} 66. a5 Ra4 67. Rb5 f6 $18) 66... Rxa4 {[%emt 0:00:13]} (66... f6 $142 67. a5 Ra4) 67. Rxg5+ {[%emt 0:00:08]} Kh7 {[%emt 0:00:03]} 68. h4 {[%emt 0:00:45]} Ra3 $2 {[%emt 0:00:26]} (68... f6) 69. Rf5 {[%emt 0:00:46]} Kg7 {[%emt 0:00:02]} 70. g5 {[%emt 0:00:24]} Kg6 {[%emt 0:01:06]} 71. Rf4 {[%emt 0:00:44]} Rb3 {[%emt 0:00:24]} 72. g3 {[%emt 0:00:20]} Rb2+ {[%emt 0:00:24]} 73. Kh3 {[%emt 0:00:03]} Rb5 {[%emt 0:00:06]} 74. Rf6+ {[%emt 0:00:50]} Kg7 {[%emt 0:00:02]} 75. Kg4 {[%emt 0:00:00]} Rb4+ {[%emt 0:00:15]} 76. Rf4 {[%emt 0:00:00]} Rb3 {[%emt 0:00:04]} 77. h5 {[%emt 0:00:00]} Ra3 {[%emt 0:00:30]} 78. Kh4 {[%emt 0:01:49]} Ra1 {[%emt 0:00:35]} 79. h6+ {[%emt 0:00:28]} Kg8 {[%emt 0:00:03] [#]} 80. g6 $2 {[%emt 0:00:13]} fxg6 $16 {[%emt 0:00:48] [#]} 81. Kg5 {[%emt 0:00:02]} (81. g4 $1 $16 {Black must now prevent Kg5.} Ra7 82. g5) 81... Ra7 $1 $11 {[%emt 0:00:32]} 82. Rb4 {[%emt 0:01:46]} Kh7 {[%emt 0:01:01]} 83. Rb5 {[%emt 0:00:01]} Rc7 {[%emt 0:00:00]} 84. g4 {[%emt 0:00:08]} Ra7 {[%emt 0:00:17]} 85. Rc5 {[%emt 0:00:01]} Rb7 {[%emt 0:00:12]} 86. Re5 {[%emt 0:00:11]} Ra7 {[%emt 0:00:16]} 87. Re8 {[%emt 0:00:10]} Ra5+ {[%emt 0:01:22]} 88. Kf6 {[%emt 0:00:01]} Ra6+ {[%emt 0:00:10]} 89. Re6 {[%emt 0:00:03]} Rxe6+ {[%emt 0:00:06]} 90. Kxe6 {[%emt 0:00:00]} Kxh6 {[%emt 0:00:38] KP-KP} 91. Kf6 {[%emt 0:00:01]} g5 $1 {[%emt 0:00:00]} 92. Kf5 {[%emt 0:00:01]} Kh7 {[%emt 0:00:00]} 93. Kxg5 {[%emt 0:00:03] KP-K. White is a pawn up.} Kg7 {[%emt 0:00:00]} 94. Kf5 {[%emt 0:00:02]} Kf7 {[%emt 0:00:36]} 95. g5 {[%emt 0:00:01][%cal Bg4g5,Bg5g6,Bg6g7][%mdl 32]} Kg7 {[%emt 0:00:00]} 96. g6 Kg8 {[%emt 0:00:00]} 97. Kf6 {[%emt 0:00:07] White threatens g7 and mate.} Kf8 {[%emt 0:00:00]} 98. g7+ {[%emt 0:00:08]} Kg8 {[%emt 0:00:00]} 99. Kg6 {[%emt 0:00:00]} 1/2-1/2

[Event "German Bundesliga 2024-25"]
[Site "Germany"]
[Date "2025.01.11"]
[Round "5"]
[White "Sarana, Alexey"]
[Black "Rapport, Richard"]
[Result "1/2-1/2"]
[Annotator "TA"]
[ECO "D80"]
[WhiteElo "2679"]
[BlackElo "2721"]
[PlyCount "44"]
[EventDate "2024.09.27"]
[EventType "team-tourn"]
[EventCountry "GER"]
[TimeControl "40/5400+30:1800+30"]

{[%evp 9,44,20,20,6,8,12,7,16,25,37,38,32,35,27,44,45,39,26,37,35,26,22,30,19,44,44,45,0,31,45,55,52,50,-8,-6,-1,-2]} 1. d4 {[%emt 0:01:00]} Nf6 {[%emt 0:01:00]} 2. c4 {[%emt 0:00:00]} g6 {[%emt 0:00:30]} 3. Nc3 {[%emt 0:00:00]} d5 {[%emt 0:00:30]} 4. e3 {[%emt 0:01:30]} Bg7 {[%emt 0:00:30]} 5. Qa4+ {[%emt 0:00:00]} c6 {[%emt 0:03:30]} 6. cxd5 {[%emt 0:00:00] D80: Grünfeld: Unusual White 4th moves and 4 Bg5.} Nxd5 {[%emt 0:01:30]} 7. Nf3 {[%emt 0:00:30]} O-O {[%emt 0:00:30][%cal Oc6c5]} 8. Be2 {[%emt 0:00:30]} Bf5 $146 {[%emt 0:16:30]} (8... Nd7 9. O-O N7b6 10. Qc2 a5 11. e4 Nb4 12. Qd1 Bg4 13. Be3 Bxf3 14. Bxf3 Nc4 {0-1 Holt,C (2584)-Vachier Lagrave,M (2789) Titled Tuesday intern op 17th April blitz 2018 (5)}) 9. O-O {[%emt 0:04:30]} Nd7 {[%emt 0:08:30]} 10. Nxd5 {[%emt 0:04:30]} (10. Qb3 {is interesting.} N7b6 11. Ng5 h6 12. e4) 10... cxd5 {[%emt 0:00:30]} 11. Qb3 {[%emt 0:00:30]} Nb6 {[%emt 0:02:30][%cal Ob6c4]} 12. Bd2 {[%emt 0:00:30]} Bg4 {[%emt 0:00:30]} 13. Rfc1 {[%emt 0:05:30]} Bxf3 {[%emt 0:19:30]} 14. Bxf3 {[%emt 0:10:30]} Qd7 {[%emt 0:00:30]} 15. Be2 {[%emt 0:08:30]} Rfc8 {[%emt 0:00:30]} 16. Ba5 {[%emt 0:09:30]} Qe6 {[%emt 0:09:30]} 17. Qb5 {[%emt 0:11:30]} Qd7 {[%emt 0:01:30]} 18. Qb3 {[%emt 0:06:30]} Qe6 {[%emt 0:00:00]} 19. h3 {[%emt 0:06:30]} h5 {[%emt 0:03:00]} 20. Qb5 {[%emt 0:00:30]} Qd7 {[%emt 0:01:30]} 21. Qb4 {[%emt 0:04:30] [#]} (21. Qxd7 $14 Nxd7 22. Bc7) 21... Nc4 $1 $11 {[%emt 0:01:30] ...b6 is the strong threat.} 22. b3 {[%emt 0:06:07]} Nxa5 {[%emt 0:07:30] Weighted Error Value: White=0.11 (very precise) /Black=0.04 (flawless)   Mistake:       	White=1     	---        OK:         	White=10    	Black=8      Brilliant:      	---       	Black=1} 1/2-1/2

[Event "German Bundesliga 2024-25"]
[Site "Germany"]
[Date "2025.01.11"]
[Round "5"]
[White "Anton Guijarro, David"]
[Black "Kasimdzhanov, Rustam"]
[Result "1-0"]
[Annotator "TA"]
[ECO "B07"]
[WhiteElo "2671"]
[BlackElo "2685"]
[PlyCount "133"]
[EventDate "2024.09.27"]
[EventType "team-tourn"]
[EventCountry "GER"]
[SourceTitle "playchess.com"]
[Source "ChessBase"]
[SourceQuality "1"]
[WhiteTeam "Viernheim"]
[BlackTeam "Baden-Baden"]
[TimeControl "40/5400+30:1800+30"]

{[%evp 51,133,91,82,85,77,86,95,86,94,96,131,137,133,140,137,144,133,132,141,144,154,153,186,185,193,186,193,192,176,159,168,158,161,128,128,128,135,135,137,114,150,150,158,144,160,157,180,166,173,180,183,168,184,179,366,272,354,365,433,433,724,393,547,370,863,841,794,559,811,705,632,456,433,328,406,401,1099,1059,1208,1699,1256,1106,29976,29977]} 1. e4 {[%emt 0:01:00]} d6 {[%emt 0:01:00]} 2. d4 {[%emt 0:01:30]} Nf6 {[%emt 0:00:00]} 3. f3 {[%emt 0:04:30]} e5 {[%emt 0:00:00]} 4. dxe5 {[%emt 0:05:30]} dxe5 {[%emt 0:03:30]} 5. Qxd8+ {[%emt 0:00:30]} Kxd8 {[%emt 0:00:30]} 6. Nd2 {[%emt 0:00:30]} Be6 {[%emt 0:09:30]} 7. Bc4 {[%emt 0:06:30]} Bxc4 {[%emt 0:03:30]} 8. Nxc4 {[%emt 0:00:30]} Nfd7 {[%emt 0:00:30]} 9. Bd2 {[%emt 0:04:30]} Nc6 {[%emt 0:04:30]} 10. O-O-O {[%emt 0:06:30]} Kc8 {[%emt 0:06:30]} 11. Ne2 {[%emt 0:00:30]} Nb6 {[%emt 0:04:30]} 12. Ne3 {[%emt 0:01:30]} Bc5 {[%emt 0:03:30]} 13. b3 {[%emt 0:04:30]} h5 {[%emt 0:06:30]} 14. h4 {[%emt 0:09:30]} g6 {[%emt 0:01:30]} 15. a4 {[%emt 0:13:30]} a5 {[%emt 0:02:30]} 16. g4 {[%emt 0:07:30]} Nd4 {[%emt 0:03:30]} 17. Nxd4 {[%emt 0:00:30]} exd4 {[%emt 0:03:30]} 18. Ng2 {[%emt 0:00:00]} hxg4 {[%emt 0:04:30]} 19. fxg4 {[%emt 0:00:00]} Nd7 {[%emt 0:00:30]} 20. h5 {[%emt 0:01:30]} gxh5 {[%emt 0:07:30]} 21. gxh5 {[%emt 0:00:30]} Nf6 {[%emt 0:00:30]} 22. e5 {[%emt 0:07:30]} Ne4 {[%emt 0:02:30]} 23. Rh4 {[%emt 0:00:30]} Nxd2 {[%emt 0:05:30]} 24. Kxd2 {[%emt 0:01:30]} Ra6 {[%emt 0:00:30]} 25. Rf1 {[%emt 0:00:30]} Be7 {[%emt 0:05:30]} 26. Rh2 {[%emt 0:02:30]} f6 {[%emt 0:04:38]} 27. exf6 {[%emt 0:00:30]} Bxf6 {[%emt 0:00:08] [#]} 28. Rf5 $1 {[%emt 0:00:30]} Bg7 {[%emt 0:02:28]} 29. Nf4 {[%emt 0:01:48]} Bh6 {[%emt 0:09:04]} 30. Kd3 {[%emt 0:00:39]} Bxf4 {[%emt 0:00:26]} 31. Rxf4 {[%emt 0:00:04]} Rah6 {[%emt 0:02:29]} 32. Rf5 $1 {[%emt 0:00:30]} (32. Kxd4 Rxh5 $11) 32... b6 {[%emt 0:00:24]} 33. Kxd4 {[%emt 0:00:34]} Rg8 {[%emt 0:01:52]} 34. Ke3 {[%emt 0:06:41]} Rg1 {[%emt 0:02:49]} 35. Kf2 {[%emt 0:01:43]} Rg4 {[%emt 0:00:49]} 36. Rh1 {[%emt 0:04:03]} Kb7 {[%emt 0:00:18]} 37. Kf3 {[%emt 0:00:34]} Rg7 {[%emt 0:00:39]} 38. c3 {[%emt 0:03:02]} Rg8 {[%emt 0:00:21]} 39. Kf4 {[%emt 0:00:51]} Rg2 {[%emt 0:00:19]} 40. Rg5 {[%emt 0:02:23]} Rf2+ {[%emt 0:00:37]} 41. Ke3 {[%emt 0:02:38]} Rff6 {[%emt 0:04:39]} 42. b4 {[%emt 0:07:30]} Rc6 {[%emt 0:01:30]} 43. Kd4 {[%emt 0:02:30]} ({Of course not} 43. bxa5 $6 Rxc3+ 44. Ke2 Re6+ 45. Kd2 Ree3 $14) 43... axb4 {[%emt 0:11:35]} 44. cxb4 {[%emt 0:00:00]} Rce6 {[%emt 0:05:02]} 45. b5 {[%emt 0:03:00]} Rh7 {[%emt 0:01:51]} 46. Re5 {[%emt 0:01:34]} Reh6 {[%emt 0:01:22]} 47. Ke4 {[%emt 0:00:17]} Rf7 {[%emt 0:05:22] [#]} 48. Rf5 $1 {[%emt 0:01:26]} Rg7 {[%emt 0:00:21]} 49. Kf4 {[%emt 0:01:29]} Rg2 {[%emt 0:00:41]} 50. Rg5 {[%emt 0:01:29]} Rf2+ {[%emt 0:02:39]} 51. Kg3 {[%emt 0:00:47]} Rff6 {[%emt 0:00:48]} 52. Rg7 {[%emt 0:11:15]} Rf8 $2 {[%emt 0:00:47]} (52... Rf5 {is a better defense.}) 53. Rg6 $18 {[%emt 0:04:00]} Rh7 {[%emt 0:00:13]} 54. h6 {[%emt 0:00:17]} Rf5 {[%emt 0:00:13]} 55. Kg4 {[%emt 0:00:27]} Rf2 {[%emt 0:00:06]} (55... Rff7 $142 56. Kg5 Rh8) 56. Rh3 {[%emt 0:01:09]} Rf1 {[%emt 0:00:32]} 57. Rh2 {[%emt 0:00:18]} Ka7 $2 {[%emt 0:01:23]} (57... Re7 58. Rg5 (58. h7 Rg1+ 59. Kf5 Rf7+ 60. Rf6 Rf1+ 61. Ke5 Re7+ 62. Re6 Re1+ 63. Kf5 Rf7+ 64. Rf6 Rf1+ 65. Ke5 Re7+ 66. Kd5 Rxh7 $11) 58... Rg1+ 59. Kh5 Rf1) 58. Kg5 $18 {[%emt 0:01:20]} Kb7 {[%emt 0:00:33]} 59. Rh4 {[%emt 0:00:31]} Rf2 {[%emt 0:00:25]} 60. Rh1 {[%emt 0:00:13]} Rf3 {[%emt 0:00:35]} 61. Rf6 {[%emt 0:00:47]} Rg3+ {[%emt 0:00:16]} 62. Kh5 {[%emt 0:00:20]} Re7 {[%emt 0:00:13]} 63. Rf5 {[%emt 0:00:28]} Rh7 {[%emt 0:01:01]} (63... Rd7 $142 64. Rg5 Rc3) 64. Rg5 $18 {[%emt 0:00:17]} Rf3 {[%emt 0:00:18]} 65. Rg7 {[%emt 0:00:33]} Rh8 {[%emt 0:00:01]} 66. h7 {[%emt 0:00:09]} Rf4 {[%emt 0:00:24]} 67. Rc1 {[%emt 0:00:36]} 1-0

[Event "German Bundesliga 2024-25"]
[Site "Germany"]
[Date "2025.01.11"]
[Round "5"]
[White "Bluebaum, Matthias"]
[Black "Kraemer, Martin"]
[Result "1/2-1/2"]
[Annotator "TA"]
[ECO "D27"]
[WhiteElo "2654"]
[BlackElo "2579"]
[PlyCount "168"]
[EventDate "2024.09.27"]
[EventType "team-tourn"]
[EventCountry "GER"]
[SourceTitle "playchess.com"]
[Source "ChessBase"]
[SourceQuality "1"]
[WhiteTeam "Deizisau"]
[BlackTeam "Heimbach-Weis-Neuwied"]
[TimeControl "40/5400+30:1800+30"]

{[%evp 20,168,6,8,3,14,34,27,34,30,46,33,35,34,56,52,56,50,56,66,84,88,117,74,73,75,67,72,66,59,61,60,56,56,76,82,85,87,85,0,0,0,0,0,0,0,68,70,71,70,79,77,91,94,228,224,227,114,229,77,89,68,55,70,88,88,94,92,163,176,163,167,170,154,136,118,127,116,125,102,118,100,95,100,96,90,108,87,75,80,100,82,118,81,85,51,59,51,34,44,43,50,70,70,66,70,62,62,62,77,107,21,37,54,37,16,14,14,14,14,18,25,15,14,33,0,0,0,0,0,0,0,0,0,0,0,0,0,0,0,0,0,0,0,0,0,0,0,0,0,0]} 1. d4 {[%emt 0:01:00]} d5 {[%emt 0:01:00]} 2. Nf3 {[%emt 0:00:00]} Nf6 {[%emt 0:00:00]} 3. c4 {[%emt 0:00:00]} dxc4 {[%emt 0:00:00]} 4. e3 {[%emt 0:00:30]} e6 {[%emt 0:00:30]} 5. Bxc4 {[%emt 0:00:30]} c5 {[%emt 0:00:30]} 6. O-O {[%emt 0:00:30]} a6 {[%emt 0:00:30]} 7. Re1 {[%emt 0:00:30]} Be7 {[%emt 0:00:00]} 8. Bd3 {[%emt 0:01:30]} cxd4 {[%emt 0:11:00]} 9. exd4 {[%emt 0:00:30]} Nc6 {[%emt 0:00:30]} 10. Nc3 {[%emt 0:00:30]} O-O {[%emt 0:12:30]} 11. Bg5 {[%emt 0:00:00][%cal Bc1g5,Bg5f4,Bf4e5][%mdl 32]} h6 {[%emt 0:05:30] D27: Queen's Gambit Accepted: Classical main line: 7 e4!? and 7 a4.} 12. Bf4 {[%emt 0:00:00]} Nb4 $146 {[%emt 0:05:30]} (12... Bd6 13. Be5 b5 14. Bxf6 Qxf6 15. Be4 Bb7 16. d5 exd5 17. Bxd5 Rad8 18. Ne4 Qf4 19. g3 {½-½ Gelfand,B (2675)-Dominguez Perez,L (2758) Leon 34th Chess.com INT rapid 2021 (2.4)}) 13. Bb1 {[%emt 0:06:30]} Nbd5 {[%emt 0:11:30] White has an edge.} 14. Nxd5 {[%emt 0:05:30]} exd5 {[%emt 0:00:30]} 15. Qb3 {[%emt 0:16:30]} Bd6 {[%emt 0:04:30]} 16. Be5 {[%emt 0:05:30]} Re8 {[%emt 0:06:30]} 17. Bc2 {[%emt 0:04:30]} Bg4 {[%emt 0:03:30]} 18. h3 {[%emt 0:02:30]} Bxf3 {[%emt 0:03:30]} 19. Qxf3 {[%emt 0:00:00]} Bxe5 {[%emt 0:07:30]} 20. dxe5 {[%emt 0:01:00]} Qa5 {[%emt 0:03:30]} 21. Bf5 {[%emt 0:14:30][%cal Ob2b4] [#] Repels Nd7. White is more active.} Ne4 {[%emt 0:04:49]} 22. Bxe4 {[%emt 0:00:30]} dxe4 {[%emt 0:00:01]} 23. Qxe4 {[%emt 0:00:00]} Rad8 {[%emt 0:00:01]} 24. Re2 {[%emt 0:02:00]} Qd5 {[%emt 0:02:29]} 25. Qxd5 {[%emt 0:08:30]} Rxd5 $14 {[%emt 0:00:02][%mdl 4096] Endgame KRR-KRR. White is a pawn up.} 26. Rae1 {[%emt 0:00:30]} Rc8 {[%emt 0:07:01]} 27. f4 {[%emt 0:06:30]} Kf8 {[%emt 0:01:15]} 28. Kf2 {[%emt 0:00:30]} Ke7 {[%emt 0:01:13]} 29. f5 {[%emt 0:02:30]} ({White should try} 29. Kf3 $16) 29... g6 $11 {[%emt 0:03:06]} 30. g4 {[%emt 0:00:30]} gxf5 {[%emt 0:01:57]} 31. gxf5 {[%emt 0:01:30]} f6 {[%emt 0:00:30]} 32. Kf3 {[%emt 0:00:30]} Rcc5 {[%emt 0:00:34]} (32... Rc4 $11) 33. exf6+ $1 $14 {[%emt 0:01:30]} Kxf6 {[%emt 0:00:01]} 34. Re6+ {[%emt 0:00:30]} Kxf5 {[%emt 0:04:57]} 35. Rxh6 {[%emt 0:00:00]} Kg5 {[%emt 0:00:11]} 36. Ree6 {[%emt 0:01:00] h4+ would kill now.} Rf5+ {[%emt 0:00:58]} (36... Rc4 $16) 37. Kg3 $18 {[%emt 0:01:46][%csl Gg3,Gh6][%cal Rh3h4]} Rf7 {[%emt 0:00:01]} 38. h4+ {[%emt 0:08:08]} Kf5 {[%emt 0:00:01] [#]} 39. Re1 $2 {[%emt 0:00:25]} (39. Rxa6 $1 $18 {and the rest is easy.} Rc1 (39... bxa6 $2 40. Rh5+ Kg6 41. Rxc5 $18) 40. Rh5+ Ke4 41. Ra4+ Kd3 42. Rd5+ Ke3 43. Rg5) 39... Rg7+ $16 {[%emt 0:00:25]} 40. Kf3 {[%emt 0:00:04]} Rc4 {[%emt 0:01:05]} 41. Rh5+ {[%emt 0:35:25]} Kf6 $1 {[%emt 0:30:07]} 42. Re4 {[%emt 0:00:00] Against Rg4} Rc2 {[%emt 0:00:00]} 43. Rh6+ {[%emt 0:00:00]} Kf7 {[%emt 0:00:00]} (43... Kf5 $16 {was called for.}) 44. Rb4 $18 {[%emt 0:00:00]} Kg8 {[%emt 0:00:00] Against Rxb7} 45. Rhb6 {[%emt 0:00:00]} Rf7+ {[%emt 0:00:00]} 46. Kg3 {[%emt 0:00:00]} Rcc7 {[%emt 0:00:00]} 47. Rf4 {[%emt 0:00:00]} Rfe7 {[%emt 0:00:00]} 48. Kg4 {[%emt 0:00:00]} Rc1 {[%emt 0:00:00]} 49. Rg6+ {[%emt 0:00:00]} Kh7 {[%emt 0:00:00]} 50. Kh5 {[%emt 0:00:00]} Rc5+ {[%emt 0:00:00]} 51. Rg5 {[%emt 0:00:00]} Rc6 {[%emt 0:00:00]} 52. Rgf5 {[%emt 0:00:00]} Kg7 {[%emt 0:00:00] Prevents Rf7+.} 53. Kg4 {[%emt 0:00:00]} Rc2 {[%emt 0:00:00]} 54. Rf2 {[%emt 0:00:00]} Rc4+ {[%emt 0:00:00]} 55. Kg5 {[%emt 0:00:00]} Rc1 {[%emt 0:00:00]} 56. Rg2 {[%emt 0:00:00]} Rc6 {[%emt 0:00:00]} 57. h5 {[%emt 0:01:58] Dodges Rg6+} Kh7 {[%emt 0:00:00] and ...Rg7+ would now be decisive} 58. Rgf2 {[%emt 0:00:23]} Rg7+ {[%emt 0:02:32]} 59. Kf4 {[%emt 0:01:38]} Kh6 {[%emt 0:00:25]} 60. b3 {[%emt 0:00:15]} Re6 {[%emt 0:00:46]} 61. Rf8 {[%emt 0:01:38]} Kh7 {[%emt 0:03:55] Dodges Rh8+} (61... Kxh5 $2 {is the wrong capture.} 62. Kf5 Kh4 63. Kxe6 $18) 62. Rd2 {[%emt 0:00:53]} Rge7 {[%emt 0:01:15]} 63. Kg5 {[%emt 0:02:34]} Re5+ {[%emt 0:00:32]} 64. Rf5 {[%emt 0:00:11]} Re1 {[%emt 0:00:43]} 65. Rfd5 {[%emt 0:03:03]} (65. Rd6 $16) 65... Rg1+ {[%emt 0:02:50]} 66. Kf6 {[%emt 0:00:04]} Rgg7 {[%emt 0:00:03]} 67. Rd8 {[%emt 0:01:51]} Rgf7+ {[%emt 0:00:41]} 68. Kg5 {[%emt 0:00:01]} Re5+ {[%emt 0:00:00]} 69. Kg4 {[%emt 0:00:01]} Rg7+ {[%emt 0:00:42]} 70. Kf4 {[%emt 0:00:05]} Rxh5 {[%emt 0:00:10]} 71. R8d7 {[%emt 0:00:04]} Rb5 {[%emt 0:00:36]} 72. Ke4 {[%emt 0:00:51]} Rxd7 {[%emt 0:01:12] The position is equal.} 73. Rxd7+ $11 {[%emt 0:00:02] KR-KR} Kg6 {[%emt 0:00:02]} 74. Kd4 {[%emt 0:00:49]} Kf6 {[%emt 0:00:11]} 75. Kc4 {[%emt 0:02:38]} Ke6 {[%emt 0:00:01]} 76. Rh7 {[%emt 0:00:24] and a4 would now be decisive} Kd6 {[%emt 0:00:45]} 77. b4 {[%emt 0:00:24]} Kc6 {[%emt 0:00:39]} 78. Rh6+ {[%emt 0:00:05]} Kc7 {[%emt 0:00:05]} 79. Rh7+ {[%emt 0:00:02]} Kc6 {[%emt 0:00:01]} 80. a4 {[%emt 0:00:04]} Rg5 {[%emt 0:00:10]} 81. Rh6+ {[%emt 0:00:03]} Kc7 {[%emt 0:00:04]} 82. Rh7+ {[%emt 0:00:05]} Kc6 {[%emt 0:00:03]} 83. Rh6+ {[%emt 0:00:01]} Kc7 {[%emt 0:00:04]} 84. Rh7+ {[%emt 0:00:04]} Kc6 {[%emt 0:00:03] Blacks defense is rewarded with a draw.   Weighted Error Value: White=0.11 (very precise) /Black=0.13 (very precise)   Mistake:       	White=3     	Black=3      Inaccurate:     	White=4     	Black=4      OK:         	White=25    	Black=28     Best:        	White=6     	Black=11     Strong:       	White=1     	Black=1} 1/2-1/2